fUST/lending_fUST_20260122
["ID","MTS","AMOUNT","RATE_DAILY","PERIOD"]
[403007502,1769050811752,150.0,8.763e-05,2]
[403007503,1769050812168,150.0,9.161e-05,2]
[403007504,1769050812594,150.0,9.559e-05,2]
[403007505,1769050812994,156.16,9.958e-05,2]
[403007506,1769050883072,150.0,8.365e-05,2]
[403007507,1769050883477,150.0,8.764e-05,2]
[403007508,1769050883889,150.0,9.162e-05,2]
[403007509,1769050886343,150.0,9.56e-05,2]
[403007510,1769050890835,150.0,9.959e-05,2]
[403007513,1769050963924,150.0,8.371e-05,2]
[403007514,1769050964327,150.0,8.77e-05,2]
[403007515,1769050964731,150.0,9.169e-05,2]
[403007516,1769050965159,150.0,9.567e-05,2]
[403007517,1769051015837,-150.0,9.966e-05,2]
[403007518,1769051271505,-150.0,0.00010066,2]
[403007519,1769051271528,-464.8537122,0.00010165,2]
[403007520,1769051319335,-97.1462878,0.00010165,2]
[403007539,1769051431898,-150.0,0.00010363,2]
[403007540,1769051431907,-962.27087936,0.00012212,2]
[403007541,1769051431917,-177.0,0.00012363,2]
[403007542,1769051431926,-182.6586602,0.00013699,2]
[403007543,1769051431935,-204.0,0.00014363,2]
[403007544,1769051431945,-150.0,0.00014378,2]
[403007545,1769051431955,-300.0,0.00014998,2]
[403007546,1769051431964,-300.0,0.00014998,2]
[403007547,1769051431974,-300.0,0.00014998,2]
[403007548,1769051431983,-300.0,0.00014999,2]
[403007550,1769051431991,-1200.0,0.00014999,2]
[403007552,1769051432000,-176.72,0.00015,2]
[403007554,1769051432010,-600.0,0.00015,10]
[403007556,1769051432019,-600.0,0.00015,10]
[403007557,1769051432028,-600.0,0.00015,10]
[403007558,1769051432037,-600.0,0.00015,10]
[403007559,1769051432049,-600.0,0.00015,10]
[403007560,1769051432059,-600.0,0.00015,10]
[403007561,1769051432068,-500.0,0.00015,10]
[403007562,1769051432077,-600.0,0.00015,10]
[403007563,1769051432086,-623.46894254,0.00015,10]
[403007564,1769051432095,-500.0,0.00015,10]
[403007566,1769051432104,-600.0,0.00015,10]
[403007568,1769051432113,-503.71343661,0.00015,10]
[403007570,1769051432124,-600.0,0.00015,10]
[403007572,1769051432132,-600.0,0.00015,10]
[403007573,1769051432142,-600.0,0.00015,10]
[403007575,1769051432151,-600.0,0.00015,10]
[403007577,1769051432159,-600.0,0.00015,10]
[403007579,1769051432168,-1153.54824383,0.00015,10]
[403007581,1769051432177,-500.0,0.00015,10]
[403007583,1769051432186,-500.0,0.00015,10]
[403007585,1769051432195,-500.0,0.00015,10]
[403007587,1769051432204,-500.0,0.00015,10]
[403007589,1769051432213,-500.0,0.00015,10]
[403007590,1769051432223,-603.43041063,0.00015,10]
[403007592,1769051432233,-500.0,0.00015,10]
[403007594,1769051432243,-500.0,0.00015,10]
[403007596,1769051432252,-500.0,0.00015,10]
[403007598,1769051432261,-500.0,0.00015,10]
[403007600,1769051432270,-500.0,0.00015,10]
[403007602,1769051432279,-500.0,0.00015,10]
[403007604,1769051432288,-500.0,0.00015,10]
[403007606,1769051432297,-550.14818767,0.00015,10]
[403007608,1769051432305,-150.0,0.00015063,2]
[403007611,1769051432315,-176.72,0.00015274,2]
[403007613,1769051432325,-256.14242203,0.00015469,2]
[403007615,1769051432334,-174.643,0.00015541,2]
[403007616,1769051432343,-176.72851996,0.00015548,2]
[403007618,1769051432352,-500.0,0.00015741,2]
[403007620,1769051432364,-500.0,0.00015741,2]
[403007622,1769051432373,-500.0,0.00015741,2]
[403007624,1769051432383,-240.79816345,0.00015741,2]
[403007626,1769051432392,-500.0,0.00015741,2]
[403007628,1769051432401,-500.0,0.00015741,2]
[403007630,1769051432410,-500.0,0.00015741,2]
[403007632,1769051432418,-500.0,0.00015741,2]
[403007634,1769051432428,-500.0,0.00015741,2]
[403007636,1769051432437,-500.0,0.00015741,2]
[403007638,1769051432446,-319.2866928,0.00015741,2]
[403007640,1769051432455,-500.0,0.00015741,2]
[403007642,1769051432463,-489.68715711,0.00015741,2]
[403007644,1769051432472,-500.0,0.00015741,2]
[403007646,1769051432481,-499.99999999,0.00015741,2]
[403007648,1769051432490,-500.0,0.00015741,2]
[403007650,1769051432499,-500.0,0.00015741,2]
[403007652,1769051432508,-396.99846802,0.00015741,2]
[403007654,1769051432517,-500.0,0.00015744,2]
[403007656,1769051432527,-150.0,0.00015747,2]
[403007659,1769051432538,-600.0,0.00015749,30]
[403007660,1769051432547,-600.0,0.00015749,30]
[403007662,1769051432556,-600.0,0.00015749,30]
[403007664,1769051432564,-600.0,0.00015749,30]
[403007666,1769051432573,-600.0,0.00015749,30]
[403007668,1769051432582,-600.0,0.00015749,30]
[403007694,1769051432802,-600.0,0.00015749,30]
[403007697,1769051432815,-600.0,0.00015749,30]
[403007699,1769051432825,-600.0,0.00015749,30]
[403007701,1769051432834,-600.0,0.00015749,30]
[403007703,1769051432843,-600.0,0.00015749,30]
[403007705,1769051432852,-600.0,0.00015749,30]
[403007707,1769051432862,-600.0,0.00015749,30]
[403007709,1769051432872,-600.0,0.00015749,30]
[403007711,1769051432881,-500.0,0.00015749,30]
[403007713,1769051432890,-500.0,0.00015749,30]
[403007715,1769051432899,-500.0,0.00015749,30]
[403007716,1769051432909,-500.0,0.00015749,30]
[403007718,1769051432918,-500.0,0.00015749,30]
[403007720,1769051432927,-500.0,0.00015749,30]
[403007722,1769051432936,-500.0,0.00015749,30]
[403007723,1769051432946,-500.0,0.00015749,30]
[403007725,1769051432955,-500.0,0.00015749,30]
[403007727,1769051432964,-500.0,0.00015749,30]
[403007729,1769051432976,-500.0,0.00015749,30]
[403007731,1769051432996,-500.0,0.00015749,30]
[403007733,1769051433014,-500.0,0.00015749,30]
[403007735,1769051433024,-500.0,0.00015749,30]
[403007737,1769051433035,-500.0,0.00015749,30]
[403007739,1769051433054,-500.0,0.00015749,30]
[403007741,1769051433063,-500.0,0.00015749,30]
[403007743,1769051433073,-500.0,0.00015749,30]
[403007745,1769051433082,-500.0,0.00015749,30]
[403007747,1769051433093,-500.0,0.00015749,30]
[403007749,1769051433103,-500.0,0.00015749,30]
[403007751,1769051433114,-445.33025489,0.00015749,30]
[403007753,1769051433126,-175.06916061,0.00015749,30]
[403007755,1769051433137,-500.0,0.00016018,2]
[403007757,1769051433147,-500.0,0.00016292,2]
[403007759,1769051433157,-231.0,0.00016363,2]
[403007761,1769051433166,-284.0,0.00016415,2]
[403007763,1769051433175,-420.0,0.00016415,2]
[403007765,1769051433184,-420.0,0.00016415,2]
[403007767,1769051433193,-150.0,0.00016432,2]
[403007769,1769051433203,-1680.0,0.00016499,2]
[403007771,1769051433212,-500.0,0.00016566,2]
[403007773,1769051433222,-391.45,0.0001674,2]
[403007775,1769051433232,-500.0,0.0001684,2]
[403007777,1769051433241,-181.14,0.00017043,2]
[403007779,1769051433250,-500.0,0.00017114,2]
[403007781,1769051433259,-500.0,0.00017388,2]
[403007783,1769051433268,-417.0,0.00017505,2]
[403007785,1769051433278,-179.289,0.00017505,2]
[403007787,1769051433287,-503.57712151,0.00017662,2]
[403007789,1769051433296,-217.36,0.00017725,2]
[403007791,1769051433305,-258.0,0.00018363,2]
[403007793,1769051433314,-253.59,0.00018406,2]
[403007795,1769051433323,-163.82777018,0.00018836,2]
[403007798,1769051433333,-2230.315306,0.00018836,2]
[403007799,1769051433342,-168.3888056,0.00018836,2]
[403007802,1769051433351,-174.61919141,0.00018836,2]
[403007804,1769051433361,-181.08010149,0.00018836,2]
[403007805,1769051433370,-187.78006525,0.00018836,2]
[403007808,1769051433379,-194.72792766,0.00018836,2]
[403007809,1769051433389,-201.93286099,0.00018836,2]
[403007812,1769051433398,-209.40437684,0.00018836,2]
[403007813,1769051433407,-217.15233878,0.00018836,2]
[403007815,1769051433417,-225.18697532,0.00018836,2]
[403007818,1769051433426,-233.51889341,0.00018836,2]
[403007819,1769051433435,-242.15909246,0.00018836,2]
[403007821,1769051433445,-251.11897888,0.00018836,2]
[403007823,1769051433454,-260.4103811,0.00018836,2]
[403007826,1769051433464,-262.0,0.00018932,3]
[403007828,1769051433473,-448.4279,0.0001899,2]
[403007829,1769051433482,-289.82,0.00019088,2]
[403007831,1769051433491,-2200.46680957,0.00019384,2]
[403007832,1769051433501,-221.30430995,0.00019502,2]
[403007833,1769051433510,-1041.66666667,0.00019626,2]
[403007834,1769051433520,-5509.13,0.00019689,3]
[403007835,1769051433529,-2754.57,0.00019689,3]
[403007836,1769051433538,-1377.28,0.00019689,3]
[403007837,1769051433547,-688.64,0.00019689,3]
[403007838,1769051433556,-344.32,0.00019689,3]
[403007839,1769051433566,-172.16,0.00019689,3]
[403007840,1769051433575,-516.52,0.00019689,3]
[403007841,1769051433584,-223.9762227,0.00019698,2]
[403007842,1769051433593,-161.210011,0.00019699,2]
[403007843,1769051433603,-151.0,0.00019699,2]
[403007844,1769051433612,-151.0,0.00019699,2]
[403007845,1769051433621,-151.0,0.00019699,2]
[403007846,1769051433630,-151.0,0.00019699,2]
[403007847,1769051433639,-151.0,0.00019699,2]
[403007848,1769051433649,-151.0,0.00019699,2]
[403007849,1769051433658,-151.0,0.00019699,2]
[403007850,1769051433668,-151.0,0.00019699,2]
[403007851,1769051433677,-151.0,0.00019699,2]
[403007852,1769051433687,-153.553912,0.00019699,2]
[403007853,1769051433696,-185.146352,0.00019699,2]
[403007854,1769051433705,-185.146352,0.00019699,2]
[403007855,1769051433716,-185.146352,0.00019699,2]
[403007856,1769051433725,-185.146352,0.00019699,2]
[403007858,1769051433734,-151.0,0.00019699,2]
[403007860,1769051433743,-151.0,0.00019699,2]
[403007862,1769051433753,-151.0,0.00019699,2]
[403007864,1769051433762,-151.0,0.00019699,2]
[403007866,1769051433771,-151.0,0.00019699,2]
[403007868,1769051433780,-151.0,0.00019699,2]
[403007870,1769051433789,-210.471212,0.00019699,2]
[403007872,1769051433798,-151.0,0.00019699,2]
[403007874,1769051433808,-151.0,0.00019699,2]
[403007876,1769051433817,-151.0,0.00019699,2]
[403007878,1769051433826,-151.0,0.00019699,2]
[403007880,1769051433835,-281.124823,0.00019699,2]
[403007882,1769051433845,-281.124823,0.00019699,2]
[403007884,1769051433854,-263.197253,0.00019699,2]
[403007886,1769051433863,-281.124823,0.00019699,2]
[403007888,1769051433873,-263.197253,0.00019699,2]
[403007890,1769051433882,-281.124823,0.00019699,2]
[403007892,1769051433891,-263.197253,0.00019699,2]
[403007894,1769051433902,-263.197253,0.00019699,2]
[403007896,1769051433911,-151.0,0.00019699,2]
[403007898,1769051433920,-151.0,0.00019699,2]
[403007900,1769051433929,-151.0,0.00019699,2]
[403007902,1769051433938,-171.521462,0.00019699,2]
[403007904,1769051433947,-151.0,0.00019699,2]
[403007906,1769051433956,-151.0,0.00019699,2]
[403007908,1769051433965,-151.0,0.00019699,2]
[403007910,1769051433975,-151.0,0.00019699,2]
[403007912,1769051433984,-151.0,0.00019699,2]
[403007914,1769051433993,-151.0,0.00019699,2]
[403007916,1769051434003,-226.150864,0.00019699,2]
[403007918,1769051434012,-292.077136,0.00019699,2]
[403007920,1769051434022,-293.345845,0.00019699,2]
[403007922,1769051434031,-175.547969,0.00019699,2]
[403007924,1769051434042,-638.829352,0.00019699,2]
[403007926,1769051434052,-638.829352,0.00019699,2]
[403007928,1769051434062,-638.829352,0.00019699,2]
[403007930,1769051434071,-638.829352,0.00019699,2]
[403007932,1769051434080,-638.829352,0.00019699,2]
[403007934,1769051434091,-638.829352,0.00019699,2]
[403007936,1769051434100,-151.0,0.00019699,2]
[403007938,1769051434109,-154.248438,0.00019699,2]
[403007940,1769051434120,-225.203364,0.00019699,2]
[403007942,1769051434129,-225.203364,0.00019699,2]
[403007944,1769051434138,-225.203364,0.00019699,2]
[403007946,1769051434147,-225.203364,0.00019699,2]
[403007948,1769051434156,-225.203364,0.00019699,2]
[403007950,1769051434165,-284.896963,0.00019699,2]
[403007951,1769051434174,-225.203364,0.00019699,2]
[403007953,1769051434183,-284.896963,0.00019699,2]
[403007955,1769051434192,-225.203364,0.00019699,2]
[403007957,1769051434201,-225.203364,0.00019699,2]
[403007959,1769051434211,-284.896963,0.00019699,2]
[403007961,1769051434220,-284.896963,0.00019699,2]
[403007963,1769051434229,-284.896963,0.00019699,2]
[403007965,1769051434238,-284.896963,0.00019699,2]
[403007967,1769051434247,-284.896963,0.00019699,2]
[403007969,1769051434257,-284.896963,0.00019699,2]
[403007971,1769051434266,-151.0,0.00019699,2]
[403007973,1769051434276,-151.128373,0.00019699,2]
[403007975,1769051434285,-1043.902989,0.00019699,2]
[403007977,1769051434294,-1043.902989,0.00019699,2]
[403007979,1769051434303,-1043.902989,0.00019699,2]
[403007981,1769051434312,-1043.902989,0.00019699,2]
[403007983,1769051434321,-1043.902989,0.00019699,2]
[403007985,1769051434330,-1043.902989,0.00019699,2]
[403007987,1769051434339,-1043.902989,0.00019699,2]
[403007989,1769051434348,-1043.902989,0.00019699,2]
[403007991,1769051434357,-151.0,0.00019699,2]
[403007993,1769051434366,-151.0,0.00019699,2]
[403007995,1769051434375,-288.545173,0.00019699,2]
[403007997,1769051434384,-207.73165,0.00019699,2]
[403007999,1769051434394,-207.73165,0.00019699,2]
[403008001,1769051434403,-207.73165,0.00019699,2]
[403008003,1769051434413,-207.73165,0.00019699,2]
[403008005,1769051434422,-207.73165,0.00019699,2]
[403008007,1769051434432,-207.73165,0.00019699,2]
[403008009,1769051434441,-207.73165,0.00019699,2]
[403008011,1769051434451,-207.73165,0.00019699,2]
[403008013,1769051434460,-207.73165,0.00019699,2]
[403008015,1769051434469,-207.73165,0.00019699,2]
[403008017,1769051434478,-207.73165,0.00019699,2]
[403008019,1769051434487,-207.73165,0.00019699,2]
[403008021,1769051434497,-151.0,0.00019699,2]
[403008023,1769051434506,-151.0,0.00019699,2]
[403008024,1769051434516,-151.0,0.00019699,2]
[403008027,1769051434526,-363.423247,0.00019699,2]
[403008029,1769051434535,-363.423247,0.00019699,2]
[403008030,1769051434544,-363.423247,0.00019699,2]
[403008032,1769051434553,-363.423247,0.00019699,2]
[403008034,1769051434564,-363.423247,0.00019699,2]
[403008036,1769051434574,-363.423247,0.00019699,2]
[403008038,1769051434583,-363.423247,0.00019699,2]
[403008040,1769051434592,-363.423247,0.00019699,2]
[403008041,1769051434602,-363.423247,0.00019699,2]
[403008043,1769051434611,-363.423247,0.00019699,2]
[403008045,1769051434620,-363.423247,0.00019699,2]
[403008047,1769051434629,-363.423247,0.00019699,2]
[403008049,1769051434638,-151.0,0.00019699,2]
[403008051,1769051434647,-151.0,0.00019699,2]
[403008053,1769051434657,-151.0,0.00019699,2]
[403008055,1769051434666,-151.0,0.00019699,2]
[403008057,1769051434676,-151.0,0.00019699,2]
[403008058,1769051434685,-151.0,0.00019699,2]
[403008060,1769051434694,-151.0,0.00019699,2]
[403008062,1769051434703,-151.0,0.00019699,2]
[403008063,1769051434718,-151.0,0.00019699,2]
[403008064,1769051434728,-222.72343,0.00019699,2]
[403008065,1769051434738,-522.642849,0.00019699,2]
[403008066,1769051434747,-522.642849,0.00019699,2]
[403008067,1769051434756,-522.642849,0.00019699,2]
[403008068,1769051434766,-522.642849,0.00019699,2]
[403008070,1769051434774,-522.642849,0.00019699,2]
[403008071,1769051434784,-522.642849,0.00019699,2]
[403008072,1769051434794,-522.642849,0.00019699,2]
[403008073,1769051434803,-522.642849,0.00019699,2]
[403008074,1769051434813,-522.642849,0.00019699,2]
[403008075,1769051434822,-1356.913226,0.00019699,2]
[403008076,1769051434831,-151.0,0.00019699,2]
[403008077,1769051434840,-1356.913226,0.00019699,2]
[403008078,1769051434850,-151.0,0.00019699,2]
[403008079,1769051434860,-1356.913226,0.00019699,2]
[403008080,1769051434869,-151.0,0.00019699,2]
[403008081,1769051434879,-151.0,0.00019699,2]
[403008082,1769051434891,-1356.913226,0.00019699,2]
[403008083,1769051434900,-151.0,0.00019699,2]
[403008084,1769051434910,-1356.913226,0.00019699,2]
[403008085,1769051434919,-151.0,0.00019699,2]
[403008086,1769051434928,-1356.913226,0.00019699,2]
[403008087,1769051434938,-522.642849,0.00019699,2]
[403008088,1769051434947,-165.317061,0.00019699,2]
[403008089,1769051434957,-522.642849,0.00019699,2]
[403008090,1769051434967,-1356.913226,0.00019699,2]
[403008091,1769051434976,-522.642849,0.00019699,2]
[403008092,1769051434986,-1356.913226,0.00019699,2]
[403008093,1769051434995,-1356.913226,0.00019699,2]
[403008094,1769051435005,-151.0,0.00019699,2]
[403008095,1769051435014,-151.0,0.00019699,2]
[403008096,1769051435023,-151.0,0.00019699,2]
[403008097,1769051435033,-1356.913226,0.00019699,2]
[403008098,1769051435044,-1356.913226,0.00019699,2]
[403008099,1769051435054,-1356.913226,0.00019699,2]
[403008100,1769051435064,-1699.183105,0.00019699,2]
[403008101,1769051435074,-1699.183105,0.00019699,2]
[403008102,1769051435084,-248.334984,0.00019699,2]
[403008103,1769051435093,-156.022285,0.00019699,2]
[403008104,1769051435102,-248.334984,0.00019699,2]
[403008105,1769051435114,-156.022285,0.00019699,2]
[403008106,1769051435124,-729.12022146,0.00019699,2]
[403008107,1769051435140,-970.06288354,0.00019699,2]
[403008108,1769051435150,-312.60378313,0.00019699,2]
[403008126,1769051437931,-270.0455652,0.00018836,2]
[403008127,1769051437942,-280.03725112,0.00018836,2]
[403008128,1769051437952,-290.39862941,0.00018836,2]
[403008129,1769051437961,-157.74808898,0.00018836,2]
[403008130,1769051438438,-143.39528972,0.00018836,2]
[403008131,1769051438448,-237.7903653,0.00019699,2]
[403008132,1769051438459,-1148.78895657,0.00019699,2]
[403008133,1769051438467,-248.334984,0.00019699,2]
[403008134,1769051438476,-156.022285,0.00019699,2]
[403008135,1769051438485,-248.334984,0.00019699,2]
[403008136,1769051438495,-156.022285,0.00019699,2]
[403008137,1769051438504,-1699.183105,0.00019699,2]
[403008138,1769051438513,-1699.183105,0.00019699,2]
[403008139,1769051438523,-248.334984,0.00019699,2]
[403008140,1769051438531,-156.022285,0.00019699,2]
[403008141,1769051438540,-248.334984,0.00019699,2]
[403008142,1769051438549,-156.022285,0.00019699,2]
[403008143,1769051438557,-1699.183105,0.00019699,2]
[403008144,1769051438566,-1699.183105,0.00019699,2]
[403008145,1769051438575,-248.334984,0.00019699,2]
[403008146,1769051438583,-156.022285,0.00019699,2]
[403008147,1769051438592,-248.334984,0.00019699,2]
[403008148,1769051438601,-156.022285,0.00019699,2]
[403008149,1769051438610,-326.05,0.0001977,2]
[403008150,1769051438619,-120867.15042362,0.00019799,2]
[403008151,1769051438627,-1699.183105,0.00019799,2]
[403008152,1769051438637,-248.334984,0.00019799,2]
[403008153,1769051438646,-156.022285,0.00019799,2]
[403008154,1769051438655,-1699.183105,0.00019799,2]
[403008155,1769051438664,-248.334984,0.00019799,2]
[403008156,1769051438673,-156.022285,0.00019799,2]
[403008157,1769051438683,-1699.183105,0.00019799,2]
[403008158,1769051438692,-248.334984,0.00019799,2]
[403008159,1769051438701,-156.022285,0.00019799,2]
[403008160,1769051438711,-1699.183105,0.00019799,2]
[403008161,1769051438720,-248.334984,0.00019799,2]
[403008162,1769051438729,-156.022285,0.00019799,2]
[403008163,1769051438738,-225.203364,0.00019857,2]
[403008164,1769051438747,-225.203364,0.00019857,2]
[403008165,1769051438757,-225.203364,0.00019857,2]
[403008166,1769051438765,-284.896963,0.00019857,2]
[403008167,1769051438775,-225.203364,0.00019857,2]
[403008168,1769051438785,-284.896963,0.00019857,2]
[403008169,1769051438794,-284.896963,0.00019857,2]
[403008170,1769051438803,-284.896963,0.00019857,2]
[403008171,1769051438813,-1043.902989,0.00019857,2]
[403008172,1769051438822,-1043.902989,0.00019857,2]
[403008173,1769051438831,-1043.902989,0.00019857,2]
[403008174,1769051438841,-1043.902989,0.00019857,2]
[403008175,1769051438850,-239.248441,0.00019857,2]
[403008176,1769051438862,-153.0,0.00019857,2]
[403008177,1769051438871,-153.0,0.00019857,2]
[403008178,1769051438881,-153.0,0.00019857,2]
[403008179,1769051438891,-616.868644,0.00019866,2]
[403008180,1769051438900,-500.0,0.00019898,2]
[403008181,1769051438909,-151.0,0.00019898,2]
[403008182,1769051438919,-161.734088,0.00019898,2]
[403008183,1769051438928,-151.0,0.00019898,2]
[403008184,1769051438938,-151.0,0.00019898,2]
[403008185,1769051438947,-151.0,0.00019898,2]
[403008186,1769051438956,-281.124823,0.00019898,2]
[403008187,1769051438965,-281.124823,0.00019898,2]
[403008188,1769051438975,-263.197253,0.00019898,2]
[403008189,1769051438984,-281.124823,0.00019898,2]
[403008190,1769051438994,-263.197253,0.00019898,2]
[403008191,1769051439003,-281.124823,0.00019898,2]
[403008192,1769051439013,-263.197253,0.00019898,2]
[403008193,1769051439023,-263.197253,0.00019898,2]
[403008194,1769051439033,-263.202382,0.00019898,2]
[403008195,1769051439044,-151.0,0.00019898,2]
[403008196,1769051439055,-151.0,0.00019898,2]
[403008197,1769051439065,-363.423247,0.00019898,2]
[403008198,1769051439074,-363.423247,0.00019898,2]
[403008199,1769051439083,-363.423247,0.00019898,2]
[403008200,1769051439095,-363.423247,0.00019898,2]
[403008201,1769051439104,-151.0,0.00019898,2]
[403008202,1769051439114,-151.0,0.00019898,2]
[403008203,1769051439126,-151.0,0.00019898,2]
[403008204,1769051439135,-522.642849,0.00019898,2]
[403008205,1769051439146,-522.642849,0.00019898,2]
[403008206,1769051439156,-1356.913226,0.00019898,2]
[403008207,1769051439165,-151.0,0.00019898,2]
[403008208,1769051439174,-522.642849,0.00019898,2]
[403008209,1769051439184,-151.0,0.00019898,2]
[403008210,1769051439194,-1356.913226,0.00019898,2]
[403008211,1769051439204,-522.642849,0.00019898,2]
[403008212,1769051439213,-1356.913226,0.00019898,2]
[403008213,1769051439223,-165.061127,0.00019898,2]
[403008214,1769051439232,-1356.913226,0.00019898,2]
[403008215,1769051439242,-663.64,0.00019899,2]
[403008216,1769051439251,-663.64,0.00019899,2]
[403008217,1769051439261,-663.64,0.00019899,2]
[403008218,1769051439270,-663.64,0.00019899,2]
[403008219,1769051439279,-663.64,0.00019899,2]
[403008220,1769051439288,-663.64,0.00019899,2]
[403008221,1769051439297,-663.64,0.00019899,2]
[403008222,1769051439307,-663.64,0.00019899,2]
[403008223,1769051439316,-663.64,0.00019899,2]
[403008224,1769051439326,-663.64,0.00019899,2]
[403008225,1769051439335,-663.64,0.00019899,2]
[403008226,1769051439345,-663.64,0.00019899,2]
[403008227,1769051439354,-663.64,0.00019899,2]
[403008228,1769051439363,-663.64,0.00019899,2]
[403008229,1769051439372,-663.64,0.00019899,2]
[403008230,1769051439381,-663.64,0.00019899,2]
[403008231,1769051439391,-663.64,0.00019899,2]
[403008232,1769051439399,-663.64,0.00019899,2]
[403008233,1769051439409,-663.64,0.00019899,2]
[403008234,1769051439418,-663.64,0.00019899,2]
[403008235,1769051439428,-663.64,0.00019899,2]
[403008236,1769051439437,-663.64,0.00019899,2]
[403008237,1769051439446,-663.81614013,0.00019899,2]
[403008238,1769051439455,-154.723336,0.00019899,2]
[403008239,1769051439464,-151.0,0.00019899,2]
[403008240,1769051439474,-151.0,0.00019899,2]
[403008241,1769051439483,-225.203364,0.00019899,2]
[403008242,1769051439492,-225.203364,0.00019899,2]
[403008243,1769051439501,-225.203364,0.00019899,2]
[403008244,1769051439510,-284.896963,0.00019899,2]
[403008245,1769051439519,-225.203364,0.00019899,2]
[403008246,1769051439528,-284.896963,0.00019899,2]
[403008247,1769051439538,-284.896963,0.00019899,2]
[403008248,1769051439547,-284.896963,0.00019899,2]
[403008249,1769051439556,-1043.902989,0.00019899,2]
[403008250,1769051439565,-1043.902989,0.00019899,2]
[403008251,1769051439575,-1043.902989,0.00019899,2]
[403008252,1769051439583,-1043.902989,0.00019899,2]
[403008253,1769051439593,-207.73165,0.00019899,2]
[403008254,1769051439604,-207.73165,0.00019899,2]
[403008255,1769051439613,-207.73165,0.00019899,2]
[403008256,1769051439622,-207.73165,0.00019899,2]
[403008257,1769051439631,-199.168115,0.00019899,2]
[403008258,1769051439641,-363.423247,0.00019899,2]
[403008259,1769051439649,-363.423247,0.00019899,2]
[403008260,1769051439659,-363.423247,0.00019899,2]
[403008261,1769051439668,-363.423238,0.00019899,2]
[403008262,1769051439677,-151.0,0.00019899,2]
[403008263,1769051439686,-151.0,0.00019899,2]
[403008264,1769051439696,-151.0,0.00019899,2]
[403008265,1769051439705,-522.642849,0.00019899,2]
[403008266,1769051439715,-522.642849,0.00019899,2]
[403008267,1769051439724,-151.0,0.00019899,2]
[403008268,1769051439734,-1356.913226,0.00019899,2]
[403008269,1769051439743,-522.642849,0.00019899,2]
[403008270,1769051439752,-151.0,0.00019899,2]
[403008271,1769051439761,-1356.913226,0.00019899,2]
[403008272,1769051439770,-522.642858,0.00019899,2]
[403008273,1769051439779,-1356.913226,0.00019899,2]
[403008274,1769051439789,-1356.913218,0.00019899,2]
[403008275,1769051439799,-1699.183105,0.00019899,2]
[403008276,1769051439808,-248.334984,0.00019899,2]
[403008277,1769051439818,-156.022285,0.00019899,2]
[403008279,1769051439827,-1699.183105,0.00019899,2]
[403008281,1769051439837,-248.334984,0.00019899,2]
[403008283,1769051439846,-156.022285,0.00019899,2]
[403008285,1769051439855,-1699.183105,0.00019899,2]
[403008287,1769051439864,-248.334984,0.00019899,2]
[403008289,1769051439874,-156.022285,0.00019899,2]
[403008291,1769051439883,-1699.183105,0.00019899,2]
[403008293,1769051439893,-248.334984,0.00019899,2]
[403008295,1769051439904,-156.022285,0.00019899,2]
[403008297,1769051439914,-167.99,0.000199,2]
[403008299,1769051439923,-151.0,0.0001992,2]